{"text_format":"1","workbook":"xlsx","n_sheets":6,"sheets":["Data","TRIM","Find and Replace","REPLACE","SUBSTITUTE","VBA"],"not_rendered":{"charts":0,"images":0,"macros":1,"external_links":0,"defined_names":0,"comments":0,"pivot_tables":0},"unopened":[],"bounds":{"document_bytes":16777216,"sheet_cells":100000,"rows_first":2000,"rows_last":500,"rows_between":2000,"halvings":0,"cell_chars":16384,"cell_head_chars":4096},"cells_cut":0,"cells_raw":0,"read":"whole","date_system":"1900"}

{"sheet":"Data","index":0,"n_rows":8,"n_cols":3,"rows_kept":8,"cut":false,"hidden":false,"merged":[[0,0,0,2]]}
["Remove Leading Space in Excel"]
[]
[]
["Salesman","Product ","Product Code"]
["   Mark Hopper"," Laptop","   L-  0022-  HP"]
[" Tim   Burnet","Mobile","M-  0125- SONY"]
["Jimmy Cathway","  Speaker"," S- 0345-  JBL"]
["  Harold   Finch","Calculator","  C- 1208- CASIO"]

{"sheet":"TRIM","index":1,"n_rows":16,"n_cols":3,"rows_kept":16,"cut":false,"hidden":false,"merged":[[0,0,0,2],[9,0,9,1]]}
["Remove Leading Space in Excel"]
[]
[]
["Salesman","Product ","Product Code"]
["   Mark Hopper"," Laptop","   L-  0022-  HP"]
[" Tim   Burnet","Mobile","M-  0125- SONY"]
["Jimmy Cathway","  Speaker"," S- 0345-  JBL"]
["  Harold   Finch","Calculator","  C- 1208- CASIO"]
[]
["Leading Space Removed"]
[]
["Salesman","Product ","Product Code"]
[{"$f":"TRIM(A5)","v":"Mark Hopper"}]
[{"$f":"TRIM(A6)","v":"Tim Burnet"}]
["Jimmy Cathway"]
["Harold Finch"]

{"sheet":"Find and Replace","index":2,"n_rows":8,"n_cols":3,"rows_kept":8,"cut":false,"hidden":false,"merged":[[0,0,0,2]]}
["Remove Leading Space in Excel"]
[]
[]
["Salesman","Product","Product Code"]
["   Mark Hopper","Laptop","   L-  0022-  HP"]
[" Tim   Burnet","Mobile","M-  0125- SONY"]
["Jimmy Cathway","Speaker"," S- 0345-  JBL"]
["  Harold   Finch","Calculator","  C- 1208- CASIO"]

{"sheet":"REPLACE","index":3,"n_rows":17,"n_cols":3,"rows_kept":17,"cut":false,"hidden":false,"merged":[[0,0,0,2],[9,0,9,1]]}
["Remove Leading Space in Excel"]
[]
[]
["Salesman","Product ","Product Code"]
["   Mark Hopper"," Laptop","   L-  0022-  HP"]
[" Tim Burnet","Mobile","M-  0125- SONY"]
["Jimmy Cathway","  Speaker"," S- 0345-  JBL"]
["  Harold Finch","Calculator","  C- 1208- CASIO"]
[]
["Leading Space Removed"]
[]
["Salesman","Product ","Product Code"]
[{"$f":"REPLACE(A5,1,LEN(A5)-LEN(TRIM(A5)),\"\")","v":"Mark Hopper"},{"$f":"REPLACE(B5,1,LEN(B5)-LEN(TRIM(B5)),\"\")","v":"Laptop"}]
[{"$f":"REPLACE(A6,1,LEN(A6)-LEN(TRIM(A6)),\"\")","v":"Tim Burnet"},"Mobile"]
["Jimmy Cathway","Speaker"]
["Harold Finch","Calculator"]
[null,{"$f":"REPLACE(B9,1,LEN(B9)-LEN(TRIM(B9)),\"\")","v":""}]

{"sheet":"SUBSTITUTE","index":4,"n_rows":16,"n_cols":3,"rows_kept":16,"cut":false,"hidden":false,"merged":[[0,0,0,2],[9,0,9,1]]}
["Remove Leading Space in Excel"]
[]
[]
["Salesman","Product ","Product Code"]
["   Mark Hopper"," Laptop","   L-  0022-  HP"]
[" Tim   Burnet","Mobile","M-  0125- SONY"]
["Jimmy Cathway","  Speaker"," S- 0345-  JBL"]
["  Harold   Finch","Calculator","  C- 1208- CASIO"]
[]
["Leading Space Removed"]
[]
["Salesman","Product ","Product Code"]
[{"$f":"TRIM(A5)","v":"Mark Hopper"},"Laptop",{"$f":"SUBSTITUTE(C5, \" \", \"\")","v":"L-0022-HP"}]
[{"$f":"TRIM(A6)","v":"Tim Burnet"},"Mobile",{"$f":"SUBSTITUTE(C6, \" \", \"\")","v":"M-0125-SONY"}]
["Jimmy Cathway","Speaker","S-0345-JBL"]
["Harold Finch","Calculator","C-1208-CASIO"]

{"sheet":"VBA","index":5,"n_rows":8,"n_cols":3,"rows_kept":8,"cut":false,"hidden":false,"merged":[[0,0,0,2]]}
["Remove Leading Space in Excel"]
[]
[]
["Salesman","Product ","Product Code"]
["Mark Hopper","Laptop","L-  0022-  HP"]
["Tim   Burnet","Mobile","M-  0125- SONY"]
["Jimmy Cathway","Speaker","S- 0345-  JBL"]
["Harold   Finch","Calculator","C- 1208- CASIO"]